fUST/lending_fUST_20250505
["ID","MTS","AMOUNT","RATE_DAILY","PERIOD"]
[359893315,1746405053365,-720.24,0.00037534,14]
[359893317,1746405053374,-350.68891214,0.00037534,14]
[359893318,1746405053383,-400.0,0.00037534,14]
[359893320,1746405053392,-695.26,0.00037534,14]
[359893322,1746405053403,-2152.28,0.00037534,14]
[359893324,1746405053412,-400.0,0.00037534,14]
[359893326,1746405053421,-400.0,0.00037534,14]
[359893327,1746405053431,-464.1,0.00037534,14]
[359893329,1746405053440,-400.0,0.00037534,14]
[359893331,1746405053450,-1397.36,0.00037534,14]
[359893333,1746405053460,-1191.91,0.00037534,14]
[359893335,1746405053469,-400.0,0.00037534,14]
[359893337,1746405053478,-699.78,0.00037534,14]
[359893338,1746405053487,-400.0,0.00037534,14]
[359893340,1746405053496,-795.94,0.00037534,14]
[359893342,1746405053505,-1833.31,0.00037534,14]
[359893344,1746405053515,-400.0,0.00037534,14]
[359893345,1746405053524,-400.0,0.00037534,14]
[359893347,1746405053534,-400.0,0.00037534,14]
[359893349,1746405053543,-5896.68,0.00037534,14]
[359893351,1746405053553,-400.0,0.00037534,14]
[359893353,1746405053562,-400.0,0.00037534,14]
[359893355,1746405053571,-432.63,0.00037534,14]
[359893356,1746405053581,-533.05,0.00037534,14]
[359893358,1746405053591,-400.0,0.00037534,14]
[359893360,1746405053600,-1340.68,0.00037534,14]
[359893362,1746405053609,-400.0,0.00037534,14]
[359893364,1746405053619,-1731.29,0.00037534,14]
[359893365,1746405053628,-400.0,0.00037534,14]
[359893367,1746405053638,-400.0,0.00037534,14]
[359893369,1746405053648,-852.85,0.00037534,14]
[359893371,1746405053657,-862.25,0.00037534,14]
[359893373,1746405053666,-400.0,0.00037534,14]
[359893375,1746405053675,-400.0,0.00037534,14]
[359893376,1746405053684,-697.98,0.00037534,14]
[359893378,1746405053694,-433.33,0.00037534,14]
[359893380,1746405053703,-504.24,0.00037534,14]
[359893382,1746405053712,-1204.34,0.00037534,14]
[359893384,1746405053722,-400.0,0.00037534,14]
[359893385,1746405053733,-400.0,0.00037534,14]
[359893387,1746405053744,-956.57,0.00037534,14]
[359893389,1746405053753,-633.42,0.00037534,14]
[359893391,1746405053763,-400.0,0.00037534,14]
[359893392,1746405053773,-601.11,0.00037534,14]
[359893394,1746405053782,-3219.54,0.00037534,14]
[359893396,1746405053791,-400.0,0.00037534,14]
[359893398,1746405053801,-2405.1,0.00037534,14]
[359893400,1746405053810,-400.0,0.00037534,14]
[359893401,1746405053819,-1755.74,0.00037534,14]
[359893403,1746405053830,-400.0,0.00037534,14]
[359893405,1746405053839,-2918.31,0.00037534,14]
[359893407,1746405053849,-400.0,0.00037534,14]
[359893409,1746405053858,-20520.99,0.00037534,14]
[359893411,1746405053867,-400.0,0.00037534,14]
[359893412,1746405053877,-400.0,0.00037534,14]
[359893414,1746405053886,-400.0,0.00037534,14]
[359893416,1746405053896,-1504.75,0.00037534,14]
[359893418,1746405053905,-748.49,0.00037534,14]
[359893419,1746405053915,-400.0,0.00037534,14]
[359893421,1746405053924,-400.0,0.00037534,14]
[359893423,1746405053934,-1467.15,0.00037534,14]
[359893425,1746405053943,-6025.57,0.00037534,14]
[359893427,1746405053953,-400.0,0.00037534,14]
[359893428,1746405053962,-6133.8,0.00037534,14]
[359893430,1746405053971,-2481.33,0.00037534,14]
[359893432,1746405053980,-665.53,0.00037534,14]
[359893434,1746405053990,-2169.29,0.00037534,14]
[359893435,1746405053998,-400.0,0.00037534,14]
[359893437,1746405054011,-151.0,0.000378,14]
[359893439,1746405054021,-235.214082,0.000378,14]
[359893441,1746405054030,-500382.18365368,0.000378,2]
[359893443,1746405054040,-151.0,0.000378,14]
[359893444,1746405054050,-151.0,0.000378,14]
[359893446,1746405054059,-151.0,0.000378,14]
[359893448,1746405054069,-400.0,0.00037808,14]
[359893450,1746405054079,-368.52040101,0.00037808,14]
[359893452,1746405054088,-638.3,0.00037808,14]
[359893453,1746405054097,-720.24,0.00037808,14]
[359893455,1746405054107,-400.0,0.00037808,14]
[359893457,1746405054117,-695.26,0.00037808,14]
[359893459,1746405054127,-2152.28,0.00037808,14]
[359893460,1746405054136,-517.56699656,0.00037808,14]
[359893462,1746405054146,-400.0,0.00037808,14]
[359893464,1746405054156,-464.1,0.00037808,14]
[359893466,1746405054166,-400.0,0.00037808,14]
[359893467,1746405054176,-1397.36,0.00037808,14]
[359893469,1746405054186,-1191.91,0.00037808,14]
[359893471,1746405054195,-400.0,0.00037808,14]
[359893473,1746405054205,-699.78,0.00037808,14]
[359893475,1746405054214,-400.0,0.00037808,14]
[359893476,1746405054223,-795.94,0.00037808,14]
[359893478,1746405054232,-1833.31,0.00037808,14]
[359893481,1746405054242,-400.0,0.00037808,14]
[359893482,1746405054252,-400.0,0.00037808,14]
[359893483,1746405054262,-400.0,0.00037808,14]
[359893484,1746405054271,-5896.68,0.00037808,14]
[359893485,1746405054281,-424.85303813,0.00037808,14]
[359893486,1746405054290,-400.0,0.00037808,14]
[359893487,1746405054299,-432.63,0.00037808,14]
[359893488,1746405054309,-533.05,0.00037808,14]
[359893489,1746405054318,-400.0,0.00037808,14]
[359893490,1746405054327,-400.0,0.00037808,14]
[359893491,1746405054336,-1340.68,0.00037808,14]
[359893492,1746405054346,-1731.29,0.00037808,14]
[359893493,1746405054355,-183.4004004,0.00037808,14]
[359893494,1746405054364,-400.0,0.00037808,14]
[359893495,1746405054373,-852.85,0.00037808,14]
[359893496,1746405054383,-862.25,0.00037808,14]
[359893497,1746405054392,-400.0,0.00037808,14]
[359893498,1746405054401,-400.0,0.00037808,14]
[359893499,1746405054410,-697.98,0.00037808,14]
[359893500,1746405054420,-433.33,0.00037808,14]
[359893501,1746405054429,-504.24,0.00037808,14]
[359893502,1746405054439,-1204.34,0.00037808,14]
[359893504,1746405054448,-400.0,0.00037808,14]
[359893506,1746405054459,-400.0,0.00037808,14]
[359893508,1746405054468,-956.57,0.00037808,14]
[359893510,1746405054478,-633.42,0.00037808,14]
[359893512,1746405054487,-300.0,0.00037808,14]
[359893514,1746405054497,-601.11,0.00037808,14]
[359893516,1746405054506,-3219.54,0.00037808,14]
[359893518,1746405054516,-400.0,0.00037808,14]
[359893520,1746405054526,-2405.1,0.00037808,14]
[359893535,1746405054651,-400.0,0.00037808,14]
[359893537,1746405054661,-1755.74,0.00037808,14]
[359893539,1746405054671,-400.0,0.00037808,14]
[359893541,1746405054680,-2918.31,0.00037808,14]
[359893543,1746405054690,-20520.99,0.00037808,14]
[359893545,1746405054701,-400.0,0.00037808,14]
[359893547,1746405054711,-400.0,0.00037808,14]
[359893549,1746405054721,-400.0,0.00037808,14]
[359893552,1746405054731,-1504.75,0.00037808,14]
[359893554,1746405054740,-748.49,0.00037808,14]
[359893556,1746405054750,-400.0,0.00037808,14]
[359893558,1746405054759,-400.0,0.00037808,14]
[359893560,1746405054769,-1467.15,0.00037808,14]
[359893562,1746405054778,-6025.57,0.00037808,14]
[359893564,1746405054787,-400.0,0.00037808,14]
[359893566,1746405054797,-6133.8,0.00037808,14]
[359893568,1746405054807,-2481.33,0.00037808,14]
[359893570,1746405054816,-665.53,0.00037808,14]
[359893572,1746405054826,-2169.29,0.00037808,14]
[359893574,1746405054835,-1228.5690731,0.00037876,4]
[359893576,1746405054846,-664.82899959,0.00038,30]
[359893578,1746405054855,-791.14270611,0.00038062,2]
[359893580,1746405054865,-400.0,0.00038082,14]
[359893582,1746405054874,-638.3,0.00038082,14]
[359893584,1746405054883,-720.24,0.00038082,14]
[359893586,1746405054892,-400.0,0.00038082,14]
[359893588,1746405054902,-695.26,0.00038082,14]
[359893590,1746405054911,-2152.28,0.00038082,14]
[359893592,1746405054921,-400.0,0.00038082,14]
[359893594,1746405054931,-464.1,0.00038082,14]
[359893596,1746405054940,-487.8,0.00038082,14]
[359893598,1746405054950,-1397.36,0.00038082,14]
[359893600,1746405054960,-1191.91,0.00038082,14]
[359893602,1746405054969,-400.0,0.00038082,14]
[359893604,1746405054978,-699.78,0.00038082,14]
[359893606,1746405054988,-151.0,0.00038082,14]
[359893608,1746405054998,-400.0,0.00038082,14]
[359893611,1746405055012,-795.94,0.00038082,14]
[359893613,1746405055023,-1833.31,0.00038082,14]
[359893615,1746405055032,-400.0,0.00038082,14]
[359893617,1746405055042,-400.0,0.00038082,14]
[359893619,1746405055054,-400.0,0.00038082,14]
[359893621,1746405055064,-5896.68,0.00038082,14]
[359893623,1746405055073,-400.0,0.00038082,14]
[359893625,1746405055084,-432.63,0.00038082,14]
[359893627,1746405055093,-533.05,0.00038082,14]
[359893629,1746405055103,-400.0,0.00038082,14]
[359893631,1746405055112,-400.0,0.00038082,14]
[359893633,1746405055122,-1340.68,0.00038082,14]
[359893635,1746405055131,-1731.29,0.00038082,14]
[359893637,1746405055140,-400.0,0.00038082,14]
[359893639,1746405055150,-852.85,0.00038082,14]
[359893641,1746405055159,-862.25,0.00038082,14]
[359893643,1746405055169,-400.0,0.00038082,14]
[359893645,1746405055178,-400.0,0.00038082,14]
[359893647,1746405055187,-697.98,0.00038082,14]
[359893649,1746405055197,-433.33,0.00038082,14]
[359893651,1746405055207,-151.0,0.00038082,14]
[359893653,1746405055216,-504.24,0.00038082,14]
[359893655,1746405055226,-1204.34,0.00038082,14]
[359893657,1746405055236,-151.0,0.00038082,14]
[359893659,1746405055246,-400.0,0.00038082,14]
[359893661,1746405055255,-400.0,0.00038082,14]
[359893663,1746405055266,-956.57,0.00038082,14]
[359893665,1746405055274,-633.42,0.00038082,14]
[359893667,1746405055287,-601.11,0.00038082,14]
[359893669,1746405055298,-3219.54,0.00038082,14]
[359893671,1746405055307,-403.66650689,0.00038082,14]
[359893673,1746405055317,-2405.1,0.00038082,14]
[359893675,1746405055327,-410.79596596,0.00038082,14]
[359893677,1746405055336,-1755.74,0.00038082,14]
[359893679,1746405055345,-400.0,0.00038082,14]
[359893681,1746405055355,-2918.31,0.00038082,14]
[359893683,1746405055364,-20520.99,0.00038082,14]
[359893685,1746405055374,-400.0,0.00038082,14]
[359893687,1746405055383,-400.0,0.00038082,14]
[359893689,1746405055393,-400.0,0.00038082,14]
[359893691,1746405055402,-1504.75,0.00038082,14]
[359893693,1746405055412,-748.49,0.00038082,14]
[359893695,1746405055422,-400.0,0.00038082,14]
[359893697,1746405055431,-400.0,0.00038082,14]
[359893699,1746405055442,-1467.15,0.00038082,14]
[359893701,1746405055451,-6025.57,0.00038082,14]
[359893703,1746405055461,-400.0,0.00038082,14]
[359893705,1746405055471,-6133.8,0.00038082,14]
[359893707,1746405055481,-2481.33,0.00038082,14]
[359893709,1746405055490,-665.53,0.00038082,14]
[359893711,1746405055500,-2169.29,0.00038082,14]
[359893713,1746405055511,-500.0,0.00038275,60]
[359893715,1746405055521,-400.0,0.00038356,14]
[359893718,1746405055531,-638.3,0.00038356,14]
[359893720,1746405055540,-720.24,0.00038356,14]
[359893722,1746405055549,-400.0,0.00038356,14]
[359893724,1746405055559,-695.26,0.00038356,14]
[359893726,1746405055568,-151.0,0.00038356,14]
[359893727,1746405055577,-2152.28,0.00038356,14]
[359893729,1746405055586,-400.0,0.00038356,14]
[359893731,1746405055595,-464.1,0.00038356,14]
[359893734,1746405055605,-1397.36,0.00038356,14]
[359893736,1746405055614,-1191.91,0.00038356,14]
[359893738,1746405055624,-400.0,0.00038356,14]
[359893740,1746405055633,-699.78,0.00038356,14]
[359893742,1746405055642,-400.0,0.00038356,14]
[359893743,1746405055651,-795.94,0.00038356,14]
[359893745,1746405055660,-151.0,0.00038356,14]
[359893747,1746405055670,-1833.31,0.00038356,14]
[359893749,1746405055679,-400.0,0.00038356,14]
[359893752,1746405055689,-400.0,0.00038356,14]
[359893754,1746405055700,-400.0,0.00038356,14]
[359893755,1746405055710,-5896.68,0.00038356,14]
[359893758,1746405055719,-400.0,0.00038356,14]
[359893760,1746405055729,-432.63,0.00038356,14]
[359893762,1746405055738,-533.05,0.00038356,14]
[359893764,1746405055747,-400.0,0.00038356,14]
[359893766,1746405055759,-1340.68,0.00038356,14]
[359893768,1746405055768,-400.0,0.00038356,14]
[359893770,1746405055779,-1731.29,0.00038356,14]
[359893772,1746405055789,-400.0,0.00038356,14]
[359893774,1746405055798,-852.85,0.00038356,14]
[359893776,1746405055808,-862.25,0.00038356,14]
[359893778,1746405055818,-400.0,0.00038356,14]
[359893780,1746405055828,-400.0,0.00038356,14]
[359893782,1746405055837,-697.98,0.00038356,14]
[359893784,1746405055847,-433.33,0.00038356,14]
[359893786,1746405055856,-504.24,0.00038356,14]
[359893788,1746405055865,-1204.34,0.00038356,14]
[359893790,1746405055875,-400.0,0.00038356,14]
[359893792,1746405055884,-400.0,0.00038356,14]
[359893794,1746405055893,-956.57,0.00038356,14]
[359893796,1746405055902,-633.42,0.00038356,14]
[359893798,1746405055911,-601.11,0.00038356,14]
[359893800,1746405055921,-3219.54,0.00038356,14]
[359893802,1746405055930,-2405.1,0.00038356,14]
[359893804,1746405055941,-1755.74,0.00038356,14]
[359893806,1746405055951,-400.0,0.00038356,14]
[359893808,1746405055960,-2918.31,0.00038356,14]
[359893810,1746405055970,-20520.99,0.00038356,14]
[359893812,1746405055980,-400.0,0.00038356,14]
[359893814,1746405055989,-400.0,0.00038356,14]
[359893816,1746405055998,-400.0,0.00038356,14]
[359893818,1746405056012,-1504.75,0.00038356,14]
[359893820,1746405056021,-748.49,0.00038356,14]
[359893822,1746405056032,-1387.381833,0.00038356,2]
[359893824,1746405056041,-400.0,0.00038356,14]
[359893826,1746405056051,-1052.02405831,0.00038356,120]
[359893828,1746405056061,-1387.381833,0.00038356,2]
[359893830,1746405056072,-400.0,0.00038356,14]
[359893832,1746405056081,-1467.15,0.00038356,14]
[359893835,1746405056092,-6025.57,0.00038356,14]
[359893836,1746405056101,-400.0,0.00038356,14]
[359893838,1746405056111,-6133.8,0.00038356,14]
[359893840,1746405056121,-2481.33,0.00038356,14]
[359893843,1746405056132,-400.0,0.00038356,14]
[359893845,1746405056142,-400.0,0.00038356,14]
[359893847,1746405056153,-400.0,0.00038356,14]
[359893849,1746405056163,-400.0,0.00038356,14]
[359893851,1746405056173,-400.0,0.00038356,14]
[359893853,1746405056182,-400.0,0.00038356,14]
[359893855,1746405056191,-400.0,0.00038356,14]
[359893857,1746405056201,-400.0,0.00038356,14]
[359893859,1746405056212,-400.0,0.00038356,14]
[359893861,1746405056222,-400.0,0.00038356,14]
[359893863,1746405056232,-400.0,0.00038356,14]
[359893865,1746405056242,-665.53,0.00038356,14]
[359893867,1746405056252,-2169.29,0.00038356,14]
[359893869,1746405056261,-200.0,0.00038356,5]
[359893871,1746405056270,-213.0594553,0.000384,38]
[359893873,1746405056281,-240.5,0.00038473,30]
[359893875,1746405056291,-327.71739443,0.000385,2]
[359893877,1746405056301,-400.0,0.0003863,14]
[359893879,1746405056311,-638.3,0.0003863,14]
[359893881,1746405056320,-720.24,0.0003863,14]
[359893883,1746405056330,-400.0,0.0003863,14]
[359893885,1746405056340,-695.26,0.0003863,14]
[359893887,1746405056349,-2152.28,0.0003863,14]
[359893889,1746405056358,-400.0,0.0003863,14]
[359893891,1746405056367,-464.1,0.0003863,14]
[359893893,1746405056377,-1397.36,0.0003863,14]
[359893895,1746405056387,-1191.91,0.0003863,14]
[359893897,1746405056396,-400.0,0.0003863,14]
[359893899,1746405056406,-699.78,0.0003863,14]
[359893901,1746405056415,-400.0,0.0003863,14]
[359893903,1746405056424,-795.94,0.0003863,14]
[359893905,1746405056433,-1833.31,0.0003863,14]
[359893907,1746405056442,-400.0,0.0003863,14]
[359893909,1746405056452,-400.0,0.0003863,14]
[359893911,1746405056462,-400.0,0.0003863,14]
[359893913,1746405056472,-5896.68,0.0003863,14]
[359893915,1746405056483,-400.0,0.0003863,14]
[359893917,1746405056492,-432.63,0.0003863,14]
[359893919,1746405056502,-533.05,0.0003863,14]
[359893921,1746405056512,-400.0,0.0003863,14]
[359893923,1746405056522,-1340.68,0.0003863,14]
[359893925,1746405056531,-400.0,0.0003863,14]
[359893927,1746405056541,-1731.29,0.0003863,14]
[359893929,1746405056551,-400.0,0.0003863,14]
[359893931,1746405056560,-852.85,0.0003863,14]
[359893933,1746405056568,-862.25,0.0003863,14]
[359893935,1746405056577,-400.0,0.0003863,14]
[359893937,1746405056587,-400.0,0.0003863,14]
[359893939,1746405056596,-697.98,0.0003863,14]
[359893941,1746405056605,-433.33,0.0003863,14]
[359893943,1746405056615,-504.24,0.0003863,14]
[359893945,1746405056624,-1204.34,0.0003863,14]
[359893946,1746405056633,-407.94165391,0.0003863,14]
[359893947,1746405056642,-400.0,0.0003863,14]
[359893948,1746405056651,-956.57,0.0003863,14]
[359893949,1746405056661,-633.42,0.0003863,14]
[359893950,1746405056670,-601.11,0.0003863,14]
[359893951,1746405056679,-3219.54,0.0003863,14]
[359893952,1746405056689,-2405.1,0.0003863,14]
[359893953,1746405056698,-1755.74,0.0003863,14]
[359893954,1746405056707,-400.0,0.0003863,14]
[359893955,1746405056716,-2918.31,0.0003863,14]
[359893956,1746405056725,-20520.99,0.0003863,14]
[359893957,1746405056734,-400.0,0.0003863,14]
[359893958,1746405056744,-400.0,0.0003863,14]
[359893959,1746405056753,-400.0,0.0003863,14]
[359893960,1746405056762,-1504.75,0.0003863,14]
[359893961,1746405056771,-748.49,0.0003863,14]
[359893962,1746405056780,-400.0,0.0003863,14]
[359893963,1746405056790,-400.0,0.0003863,14]
[359893964,1746405056799,-1467.15,0.0003863,14]
[359893965,1746405056808,-6025.57,0.0003863,14]
[359893966,1746405056818,-400.0,0.0003863,14]
[359893967,1746405056827,-6133.8,0.0003863,14]
[359893968,1746405056837,-2481.33,0.0003863,14]
[359893969,1746405056846,-400.0,0.0003863,14]
[359893970,1746405056855,-665.53,0.0003863,14]
[359893971,1746405056864,-2169.29,0.0003863,14]
[359893972,1746405056873,-406.87454957,0.0003868,15]
[359893973,1746405056883,-9158.24238006,0.000387,5]
[359893975,1746405056892,-7526.63146009,0.00038804,2]
[359893976,1746405056901,-791.14270611,0.00038823,2]
[359893978,1746405056910,-182.19332975,0.00038855,2]
[359893980,1746405056919,-160.0,0.00038858,2]
[359893982,1746405056929,-421.74012052,0.00038858,2]
[359893984,1746405056939,-500.0,0.00038873,5]
[359893986,1746405056948,-160.0,0.00038894,3]
[359893988,1746405056959,-153.35481041,0.00038898,15]
[359893990,1746405056968,-500.0,0.00038898,15]
[359893992,1746405056979,-500.0,0.00038898,7]
[359893994,1746405056988,-500.0,0.00038898,15]
[359893996,1746405056998,-500.0,0.00038898,15]
[359893998,1746405057011,-500.0,0.00038898,15]
[359894000,1746405057020,-500.0,0.00038898,15]
[359894002,1746405057030,-230.20478478,0.00038898,7]
[359894004,1746405057039,-326.68843097,0.00038898,15]
[359894006,1746405057050,-424.12711259,0.00038898,15]
[359894008,1746405057060,-425417.67957,0.00038899,2]
[359894010,1746405057070,-656.02,0.000389,2]
[359894011,1746405057081,-17220.28,0.000389,30]
[359894012,1746405057091,-201.76483137,0.000389,2]
[359894013,1746405057100,-267.0,0.000389,2]
[359894014,1746405057110,-151.0,0.000389,2]
[359894015,1746405057119,-500.0,0.000389,2]
[359894016,1746405057128,-500.0,0.000389,2]
[359894017,1746405057138,-635.0,0.000389,2]
[359894018,1746405057148,-151.0,0.000389,2]
[359894019,1746405057158,-151.0,0.00038904,14]
[359894020,1746405057167,-400.0,0.00038904,15]
[359894021,1746405057177,-151.0,0.00038904,15]
[359894022,1746405057187,-151.0,0.00038904,15]
[359894023,1746405057196,-500.0,0.00038904,15]
[359894024,1746405057207,-151.0,0.00038904,15]
[359894025,1746405057216,-151.18844493,0.00038904,15]
[359894027,1746405057226,-151.0,0.00038904,15]
[359894029,1746405057235,-400.0,0.00038904,14]
[359894031,1746405057245,-151.0,0.00038904,14]
[359894033,1746405057254,-151.0,0.00038904,14]
[359894035,1746405057263,-151.0,0.00038904,14]
[359894037,1746405057272,-638.3,0.00038904,14]
[359894039,1746405057282,-720.24,0.00038904,14]
[359894041,1746405057291,-400.0,0.00038904,14]
[359894042,1746405057300,-695.26,0.00038904,14]
[359894044,1746405057310,-2152.28,0.00038904,14]
[359894046,1746405057319,-400.0,0.00038904,14]
[359894048,1746405057329,-464.1,0.00038904,14]
[359894051,1746405057340,-1397.36,0.00038904,14]
[359894053,1746405057349,-1191.91,0.00038904,14]
[359894055,1746405057359,-405.69861178,0.00038904,14]
[359894057,1746405057368,-699.78,0.00038904,14]
[359894059,1746405057377,-400.0,0.00038904,14]
[359894061,1746405057387,-795.94,0.00038904,14]
[359894063,1746405057396,-1833.31,0.00038904,14]
[359894065,1746405057405,-400.0,0.00038904,14]
[359894067,1746405057414,-400.0,0.00038904,14]
[359894069,1746405057424,-400.0,0.00038904,14]
[359894071,1746405057433,-5896.68,0.00038904,14]
[359894073,1746405057442,-400.0,0.00038904,14]
[359894075,1746405057451,-432.63,0.00038904,14]
[359894077,1746405057461,-533.05,0.00038904,14]
[359894078,1746405057470,-400.0,0.00038904,14]
[359894079,1746405057480,-1340.68,0.00038904,14]
[359894080,1746405057489,-400.0,0.00038904,14]
[359894081,1746405057499,-1731.29,0.00038904,14]
[359894083,1746405057508,-400.0,0.00038904,14]
[359894085,1746405057518,-852.85,0.00038904,14]
[359894087,1746405057527,-862.25,0.00038904,14]
[359894088,1746405057536,-400.0,0.00038904,14]
[359894089,1746405057546,-400.0,0.00038904,14]
[359894090,1746405057555,-697.98,0.00038904,14]
[359894091,1746405057564,-433.33,0.00038904,14]
[359894092,1746405057574,-504.24,0.00038904,14]
[359894093,1746405057583,-1204.34,0.00038904,14]
[359894094,1746405057593,-400.0,0.00038904,14]
[359894095,1746405057602,-956.57,0.00038904,14]
[359894096,1746405057612,-633.42,0.00038904,14]
[359894097,1746405057621,-601.11,0.00038904,14]
[359894098,1746405057631,-3219.54,0.00038904,14]
[359894099,1746405057641,-2405.1,0.00038904,14]
[359894100,1746405057756,-1755.74,0.00038904,14]
[359894101,1746405057779,-400.0,0.00038904,14]
[359894102,1746405057789,-2918.31,0.00038904,14]
[359894103,1746405057799,-20520.99,0.00038904,14]
[359894104,1746405057809,-400.0,0.00038904,14]
[359894105,1746405057818,-400.0,0.00038904,14]
[359894106,1746405057828,-300.65566862,0.00038904,14]
[359894107,1746405057838,-1504.75,0.00038904,14]
[359894108,1746405057848,-748.49,0.00038904,14]
[359894109,1746405057857,-400.0,0.00038904,14]
[359894110,1746405057867,-151.0,0.00038904,14]
[359894111,1746405057877,-405.94563896,0.00038904,14]
[359894112,1746405057886,-1467.15,0.00038904,14]
[359894113,1746405057896,-6025.57,0.00038904,14]
[359894114,1746405057905,-400.0,0.00038904,14]
[359894115,1746405057915,-6133.8,0.00038904,14]
[359894116,1746405057925,-2481.33,0.00038904,14]
[359894117,1746405057935,-400.0,0.00038904,14]
[359894118,1746405057945,-200.00935554,0.00038904,14]
[359894119,1746405057954,-665.53,0.00038904,14]
[359894120,1746405057965,-151.0,0.00038904,14]
[359894121,1746405057975,-2169.29,0.00038904,14]
[359894122,1746405057984,-324.0,0.00038909,15]
[359894123,1746405057993,-500.0,0.00038909,15]
[359894124,1746405058003,-500.0,0.00038909,15]
[359894125,1746405058015,-413.79746407,0.00038909,15]
[359894126,1746405058025,-500.0,0.00038909,15]
[359894127,1746405058034,-400.0,0.00038909,15]
[359894128,1746405058044,-500.0,0.00038927,2]
[359894129,1746405058053,-500.0,0.00038927,2]
[359894130,1746405058063,-151.0,0.00038927,2]
[359894131,1746405058075,-151.0,0.00038931,15]
[359894132,1746405058084,-500.0,0.00038931,15]
[359894133,1746405058095,-151.0,0.00038931,15]
[359894134,1746405058104,-617.820206,0.00038933,2]
[359894135,1746405058113,-500.0,0.00038955,2]
[359894136,1746405058123,-500.0,0.00038955,2]
[359894137,1746405058133,-164.22528875,0.00038955,2]
[359894138,1746405058143,-198.0,0.00038959,15]
[359894139,1746405058152,-349.0,0.00038959,15]
[359894140,1746405058162,-900.0,0.0003896,5]
[359894141,1746405058171,-500.62444783,0.00038973,5]
[359894142,1746405058180,-500.0,0.00038973,5]
[359894143,1746405058190,-500.0,0.00038982,2]
[359894144,1746405058199,-500.0,0.00038982,2]
[359894145,1746405058208,-15286.91386912,0.00038986,7]
[359894146,1746405058218,-3314.6845057,0.00039,7]
[359894147,1746405058227,-132252.0,0.00039,2]
[359894148,1746405058236,-1614.0,0.00039,2]
[359894149,1746405058248,-18377.0,0.00039,2]
[359894150,1746405058257,-714.0,0.00039,2]
[359894151,1746405058266,-1398.58335552,0.00039,120]
[359894152,1746405058276,-803.3093305,0.00039,14]
[359894153,1746405058287,-182.19332975,0.00039,7]
[359894154,1746405058297,-182.19332975,0.00039,30]
[359894155,1746405058306,-2454.24,0.00039,7]
[359894156,1746405058316,-1503.83,0.00039,30]
[359894157,1746405058326,-4811.87,0.00039,30]
[359894158,1746405058335,-500.90155241,0.00039,10]
[359894159,1746405058344,-151.0,0.00039,14]
[359894160,1746405058354,-151.0,0.00039,14]
[359894161,1746405058363,-151.0,0.00039,14]
[359894162,1746405058373,-151.0,0.00039,14]
[359894163,1746405058382,-151.0,0.00039,14]
[359894164,1746405058391,-1387.381833,0.00039,2]
[359894165,1746405058401,-1387.381833,0.00039,2]